fUST/lending_fUST_20240218
["ID","MTS","AMOUNT","RATE_DAILY","PERIOD"]
[314341873,1708203044535,-1991.87,0.00030999,2]
[314341874,1708203044544,-13445.15,0.00030999,2]
[314341875,1708203044553,-150.0,0.00030999,2]
[314341876,1708203044562,-186.79483224,0.00030999,2]
[314341877,1708203044571,-500.0,0.00030999,2]
[314341878,1708203044581,-500.0,0.00030999,2]
[314341879,1708203044590,-500.0,0.00030999,2]
[314341880,1708203044599,-500.0,0.00030999,2]
[314341881,1708203044609,-221.07040186,0.00030999,2]
[314341882,1708203044618,-223.29758661,0.00030999,2]
[314341883,1708203044627,-291.08381287,0.00030999,2]
[314341884,1708203044636,-500.0,0.00030999,2]
[314341885,1708203044645,-500.0,0.00030999,2]
[314341886,1708203044655,-500.0,0.00030999,2]
[314341887,1708203044664,-500.0,0.00030999,2]
[314341888,1708203044673,-5499.99999502,0.00031,2]
[314341889,1708203044683,-1000.0,0.00031,31]
[314341890,1708203044692,-14540.66849829,0.00031,4]
[314341903,1708203046114,-500.0,0.00028771,2]
[314341938,1708204168097,-154.93802479,0.00023099,2]
[314341939,1708204168122,-360.815733,0.000231,10]
[314341940,1708204168145,-1815.97721264,0.00024012,2]
[314341990,1708204238320,-176.699557,0.00023972,2]
[314341992,1708204238332,-1361.02906953,0.00024012,5]
[314341994,1708204238342,-243.21323446,0.00024012,2]
[314341996,1708204238353,-166.666666,0.00024658,2]
[314341998,1708204238364,-183.05705444,0.00024739,2]
[314342001,1708204238375,-7054.87,0.00024829,3]
[314342003,1708204238385,-5879.05,0.00024829,3]
[314342005,1708204238395,-89901.71707272,0.00024839,2]
[314342007,1708204238405,-4270.33156096,0.00024839,2]
[314342009,1708204238416,-200.0,0.00025479,2]
[314342011,1708204238426,-166.666666,0.00025643,2]
[314342013,1708204238436,-166.666666,0.00026628,2]
[314342016,1708204238447,-460.78879688,0.00027017,2]
[314342027,1708204238551,-634.18700132,0.00027017,2]
[314342029,1708204238592,-500.0,0.00027017,2]
[314342030,1708204238602,-345.22990015,0.00027017,2]
[314342031,1708204238611,-279.76602728,0.00027017,2]
[314342032,1708204238621,-500.0,0.00027017,2]
[314342033,1708204238630,-221.81971649,0.00027017,2]
[314342034,1708204238639,-380.0787196,0.00027017,2]
[314342035,1708204238649,-500.0,0.00027017,2]
[314342036,1708204238658,-500.0,0.00027017,2]
[314342037,1708204238667,-500.0,0.00027017,2]
[314342038,1708204238676,-500.0,0.00027017,2]
[314342039,1708204238685,-500.0,0.00027017,2]
[314342040,1708204238694,-500.0,0.00027017,2]
[314342041,1708204238703,-403.16150727,0.00027017,2]
[314342042,1708204238711,-500.0,0.00027017,2]
[314342043,1708204238720,-500.0,0.00027017,2]
[314342044,1708204238730,-500.0,0.00027017,2]
[314342045,1708204238738,-500.0,0.00027017,2]
[314342046,1708204238748,-500.0,0.00027017,2]
[314342047,1708204238757,-500.0,0.00027017,2]
[314342048,1708204238765,-500.0,0.00027017,2]
[314342049,1708204238775,-500.0,0.00027017,2]
[314342051,1708204238784,-500.0,0.00027017,2]
[314342053,1708204238794,-500.0,0.00027017,2]
[314342055,1708204238803,-500.0,0.00027017,2]
[314342057,1708204238813,-500.0,0.00027017,2]
[314342059,1708204238822,-500.0,0.00027017,2]
[314342061,1708204238831,-500.0,0.00027017,2]
[314342063,1708204238841,-500.0,0.00027017,2]
[314342065,1708204238850,-500.0,0.00027017,2]
[314342067,1708204238859,-500.0,0.00027017,2]
[314342069,1708204238868,-454.78382122,0.00027017,2]
[314342071,1708204238877,-500.0,0.00027017,2]
[314342073,1708204238886,-500.0,0.00027017,2]
[314342075,1708204238895,-500.0,0.00027017,2]
[314342077,1708204238904,-500.0,0.00027017,2]
[314342079,1708204238913,-500.0,0.00027017,2]
[314342081,1708204238922,-500.0,0.00027017,2]
[314342083,1708204238931,-500.0,0.00027017,2]
[314342084,1708204238940,-14874.5299909,0.00027018,2]
[314342087,1708204238950,-3192.19566304,0.00027184,3]
[314342089,1708204238960,-506.06743355,0.00027397,2]
[314342091,1708204238969,-500.0,0.00027397,2]
[314342093,1708204238978,-500.0,0.00027397,2]
[314342095,1708204238987,-500.0,0.00027397,2]
[314342097,1708204238996,-500.0,0.00027397,2]
[314342099,1708204239005,-500.0,0.00027397,2]
[314342101,1708204239014,-500.0,0.00027397,2]
[314342103,1708204239023,-500.0,0.00027397,2]
[314342104,1708204239032,-500.0,0.00027397,2]
[314342106,1708204239042,-500.0,0.00027397,2]
[314342108,1708204239051,-500.0,0.00027397,2]
[314342110,1708204239060,-500.0,0.00027397,2]
[314342112,1708204239069,-504.0168972,0.00027397,2]
[314342114,1708204239078,-3472.72,0.00027397,2]
[314342116,1708204239088,-746.75,0.00027397,2]
[314342118,1708204239096,-500.0,0.00027397,2]
[314342120,1708204239105,-500.0,0.00027397,2]
[314342122,1708204239114,-500.0,0.00027397,2]
[314342124,1708204239124,-504.07309495,0.00027397,2]
[314342126,1708204239134,-337.80225645,0.00027397,2]
[314342128,1708204239143,-500.0,0.00027397,2]
[314342130,1708204239152,-500.0,0.00027397,2]
[314342132,1708204239167,-3796.26,0.00027397,2]
[314342134,1708204239177,-630.28434313,0.00027397,2]
[314342136,1708204239186,-902.0,0.00027397,2]
[314342138,1708204239197,-500.0,0.00027397,2]
[314342141,1708204239207,-500.0,0.00027397,2]
[314342142,1708204239216,-500.0,0.00027397,2]
[314342145,1708204239226,-504.32224582,0.00027397,2]
[314342147,1708204239234,-500.0,0.00027397,2]
[314342148,1708204239244,-500.0,0.00027397,2]
[314342150,1708204239254,-500.0,0.00027397,2]
[314342152,1708204239263,-500.0,0.00027397,2]
[314342155,1708204239273,-500.0,0.00027397,2]
[314342157,1708204239282,-589.31,0.00027397,2]
[314342159,1708204239291,-541.41043922,0.00027397,2]
[314342161,1708204239300,-500.0,0.00027397,2]
[314342163,1708204239309,-500.0,0.00027397,2]
[314342165,1708204239318,-500.0,0.00027397,2]
[314342167,1708204239328,-2408.37,0.00027397,2]
[314342169,1708204239337,-166.666666,0.00027614,2]
[314342171,1708204239346,-504.0187755,0.00027671,2]
[314342173,1708204239355,-500.0,0.00027671,2]
[314342175,1708204239364,-500.051579,0.00027671,2]
[314342177,1708204239375,-311.36704535,0.00027671,2]
[314342179,1708204239384,-506.1561853,0.00027671,2]
[314342181,1708204239393,-500.0,0.00027671,2]
[314342183,1708204239402,-502.88903493,0.00027671,2]
[314342185,1708204239410,-525.30971961,0.00027671,2]
[314342187,1708204239419,-500.0,0.00027671,2]
[314342188,1708204239428,-3472.72,0.00027671,2]
[314342191,1708204239438,-746.75,0.00027671,2]
[314342193,1708204239447,-500.0,0.00027671,2]
[314342195,1708204239456,-472.3,0.00027671,2]
[314342196,1708204239464,-3796.26,0.00027671,2]
[314342198,1708204239474,-902.0,0.00027671,2]
[314342201,1708204239483,-500.0,0.00027671,2]
[314342202,1708204239491,-500.0,0.00027671,2]
[314342204,1708204239501,-500.0,0.00027671,2]
[314342206,1708204239509,-500.0,0.00027671,2]
[314342208,1708204239518,-500.0,0.00027671,2]
[314342210,1708204239527,-500.0,0.00027671,2]
[314342212,1708204239536,-589.31,0.00027671,2]
[314342214,1708204239545,-503.86860364,0.00027671,2]
[314342216,1708204239554,-500.0,0.00027671,2]
[314342218,1708204239563,-2408.37,0.00027671,2]
[314342220,1708204239572,-621.386738,0.00027882,2]
[314342222,1708204239581,-500.0,0.00027945,2]
[314342224,1708204239590,-500.0,0.00027945,2]
[314342226,1708204239599,-500.0,0.00027945,2]
[314342228,1708204239608,-3472.72,0.00027945,2]
[314342230,1708204239617,-746.75,0.00027945,2]
[314342232,1708204239626,-209.56,0.00027945,2]
[314342233,1708204239635,-3796.26,0.00027945,2]
[314342234,1708204239644,-902.0,0.00027945,2]
[314342235,1708204239653,-500.0,0.00027945,2]
[314342236,1708204239662,-507.25023719,0.00027945,2]
[314342237,1708204239671,-469.50533681,0.00027945,2]
[314342238,1708204239680,-500.0,0.00027945,2]
[314342239,1708204239690,-500.0,0.00027945,2]
[314342240,1708204239699,-500.0,0.00027945,2]
[314342241,1708204239708,-589.31,0.00027945,2]
[314342242,1708204239717,-444.72726313,0.00027945,2]
[314342243,1708204239726,-2408.37,0.00027945,2]
[314342244,1708204239736,-155.0,0.00028045,2]
[314342245,1708204239745,-196.782964,0.00028134,2]
[314342247,1708204239755,-157.515158,0.00028134,2]
[314342248,1708204239764,-166.302034,0.00028134,2]
[314342249,1708204239773,-169.089799,0.00028134,2]
[314342250,1708204239781,-169.089799,0.00028134,2]
[314342251,1708204239791,-166.302034,0.00028134,2]
[314342252,1708204239800,-169.089799,0.00028134,2]
[314342254,1708204239809,-500.0,0.00028219,2]
[314342255,1708204239818,-500.0,0.00028219,2]
[314342256,1708204239827,-3472.72,0.00028219,2]
[314342257,1708204239836,-746.75,0.00028219,2]
[314342258,1708204239845,-3796.26,0.00028219,2]
[314342259,1708204239854,-902.0,0.00028219,2]
[314342260,1708204239863,-500.0,0.00028219,2]
[314342261,1708204239873,-500.0,0.00028219,2]
[314342262,1708204239882,-500.0,0.00028219,2]
[314342263,1708204239902,-500.0,0.00028219,2]
[314342264,1708204239914,-589.31,0.00028219,2]
[314342265,1708204239924,-2408.37,0.00028219,2]
[314342266,1708204239934,-382.04,0.00028493,2]
[314342267,1708204239943,-3472.72,0.00028493,2]
[314342268,1708204239953,-746.75,0.00028493,2]
[314342269,1708204239963,-3796.26,0.00028493,2]
[314342270,1708204239973,-902.0,0.00028493,2]
[314342271,1708204239982,-500.0,0.00028493,2]
[314342272,1708204239991,-500.0,0.00028493,2]
[314342273,1708204240001,-500.0,0.00028493,2]
[314342274,1708204240011,-500.0,0.00028493,2]
[314342275,1708204240021,-589.31,0.00028493,2]
[314342276,1708204240030,-2408.37,0.00028493,2]
[314342277,1708204240040,-152.26079786,0.00028713,2]
[314342278,1708204240049,-3472.72,0.00028767,2]
[314342279,1708204240059,-746.75,0.00028767,2]
[314342280,1708204240069,-3796.26,0.00028767,2]
[314342281,1708204240079,-902.0,0.00028767,2]
[314342282,1708204240089,-500.0,0.00028767,2]
[314342283,1708204240098,-500.0,0.00028767,2]
[314342284,1708204240108,-500.0,0.00028767,2]
[314342285,1708204240117,-500.0,0.00028767,2]
[314342286,1708204240127,-589.31,0.00028767,2]
[314342287,1708204240136,-2408.37,0.00028767,2]
[314342288,1708204240145,-531.53967277,0.00028771,2]
[314342289,1708204240156,-500.0,0.00028771,2]
[314342290,1708204240168,-500.0,0.00028771,2]
[314342291,1708204240186,-704.88,0.00028771,2]
[314342292,1708204240196,-631.52,0.00028771,2]
[314342293,1708204240206,-509.76910162,0.00028771,2]
[314342294,1708204240216,-183.11041211,0.00028772,2]
[314342295,1708204240225,-500.0,0.00028772,2]
[314342296,1708204240234,-500.0,0.00028772,2]
[314342297,1708204240244,-500.0,0.00028772,2]
[314342298,1708204240254,-506.76238936,0.00028772,2]
[314342299,1708204240263,-500.0,0.00028772,2]
[314342300,1708204240273,-500.0,0.00028772,2]
[314342301,1708204240282,-500.0,0.00028772,2]
[314342302,1708204240291,-196.782964,0.00028838,2]
[314342303,1708204240300,-331.46511039,0.00028864,2]
[314342304,1708204240310,-1974.32885604,0.00029,7]
[314342305,1708204240319,-422.16862063,0.00029,2]
[314342306,1708204240329,-3472.72,0.00029041,2]
[314342307,1708204240339,-746.75,0.00029041,2]
[314342308,1708204240348,-3796.26,0.00029041,2]
[314342309,1708204240358,-902.0,0.00029041,2]
[314342310,1708204240368,-500.0,0.00029041,2]
[314342311,1708204240378,-500.0,0.00029041,2]
[314342312,1708204240388,-500.0,0.00029041,2]
[314342313,1708204240397,-500.0,0.00029041,2]
[314342314,1708204240407,-589.31,0.00029041,2]
[314342315,1708204240416,-2408.37,0.00029041,2]
[314342316,1708204240425,-500.0,0.00029045,2]
[314342317,1708204240435,-500.0,0.00029045,2]
[314342319,1708204240443,-153.44114852,0.00029045,2]
[314342320,1708204240452,-500.0,0.00029045,2]
[314342321,1708204240461,-704.88,0.00029045,2]
[314342322,1708204240471,-504.01055325,0.00029045,2]
[314342323,1708204240480,-500.0,0.00029045,2]
[314342324,1708204240489,-631.52,0.00029045,2]
[314342325,1708204240499,-180.24851023,0.00029045,2]
[314342327,1708204240508,-466.09670805,0.00029045,2]
[314342328,1708204240517,-500.0,0.00029045,2]
[314342329,1708204240527,-518.6324567,0.00029045,2]
[314342330,1708204240536,-500.0,0.00029045,2]
[314342331,1708204240545,-500.0,0.00029045,2]
[314342333,1708204240554,-500.0,0.00029045,2]
[314342334,1708204240565,-534.99074956,0.00029045,2]
[314342335,1708204240574,-507.03918604,0.00029045,2]
[314342336,1708204240583,-500.0,0.00029045,2]
[314342337,1708204240593,-500.0,0.00029045,2]
[314342338,1708204240602,-503.1545323,0.00029045,2]
[314342339,1708204240611,-500.0,0.00029045,2]
[314342340,1708204240621,-150.0,0.00029045,2]
[314342341,1708204240630,-500.0,0.00029045,2]
[314342342,1708204240640,-500.0,0.00029045,2]
[314342343,1708204240649,-500.0,0.00029045,2]
[314342344,1708204240658,-702.78,0.00029045,2]
[314342345,1708204240668,-500.0,0.00029045,2]
[314342346,1708204240677,-500.0,0.00029045,2]
[314342347,1708204240687,-503.608474,0.00029045,2]
[314342348,1708204240696,-509.33952143,0.00029045,2]
[314342349,1708204240705,-500.0,0.00029045,2]
[314342350,1708204240714,-595.45940406,0.00029045,2]
[314342351,1708204240724,-500.0,0.00029045,2]
[314342352,1708204240733,-540.63992941,0.00029045,2]
[314342353,1708204240742,-500.0,0.00029045,2]
[314342354,1708204240752,-500.0,0.00029045,2]
[314342355,1708204240762,-2270.51,0.00029045,2]
[314342356,1708204240771,-500.0,0.00029045,2]
[314342357,1708204240781,-500.0,0.00029045,2]
[314342358,1708204240790,-500.0,0.00029045,2]
[314342359,1708204240800,-2450.54,0.00029045,2]
[314342360,1708204240809,-662.18,0.00029045,2]
[314342361,1708204240818,-686.0,0.00029045,2]
[314342362,1708204240828,-500.0,0.00029045,2]
[314342363,1708204240838,-500.0,0.00029045,2]
[314342364,1708204240934,-500.0,0.00029045,2]
[314342365,1708204240953,-500.0,0.00029045,2]
[314342366,1708204240962,-525.27731322,0.00029045,2]
[314342367,1708204240971,-500.0,0.00029045,2]
[314342368,1708204240981,-521.77890812,0.00029045,2]
[314342369,1708204240991,-500.0,0.00029045,2]
[314342370,1708204241001,-500.0,0.00029045,2]
[314342371,1708204241010,-505.48477638,0.00029045,2]
[314342372,1708204241019,-3441.92,0.00029045,2]
[314342373,1708204241028,-503.5333913,0.00029045,2]
[314342374,1708204241037,-2447.89,0.00029045,2]
[314342375,1708204241047,-500.0,0.00029046,2]
[314342376,1708204241056,-410.34813149,0.00029046,2]
[314342377,1708204241065,-500.0,0.00029046,2]
[314342378,1708204241075,-500.0,0.00029046,2]
[314342379,1708204241084,-620.0693369,0.00029276,2]
[314342380,1708204241093,-1786.56049038,0.000293,2]
[314342381,1708204241102,-3472.72,0.00029315,2]
[314342382,1708204241112,-746.75,0.00029315,2]
[314342383,1708204241121,-3796.26,0.00029315,2]
[314342384,1708204241130,-902.0,0.00029315,2]
[314342385,1708204241139,-500.0,0.00029315,2]
[314342386,1708204241149,-500.0,0.00029315,2]
[314342387,1708204241160,-500.0,0.00029315,2]
[314342388,1708204241170,-500.0,0.00029315,2]
[314342389,1708204241179,-589.31,0.00029315,2]
[314342390,1708204241188,-167.23199005,0.00029319,2]
[314342391,1708204241198,-198.19669351,0.00029319,2]
[314342392,1708204241208,-704.88,0.00029319,2]
[314342393,1708204241217,-500.0,0.00029319,2]
[314342394,1708204241226,-631.52,0.00029319,2]
[314342395,1708204241236,-500.0,0.00029319,2]
[314342396,1708204241245,-500.0,0.00029319,2]
[314342397,1708204241254,-500.0,0.00029319,2]
[314342398,1708204241263,-500.0,0.00029319,2]
[314342399,1708204241273,-500.0,0.00029319,2]
[314342400,1708204241282,-150.0,0.00029319,2]
[314342401,1708204241291,-500.0,0.00029319,2]
[314342402,1708204241300,-500.0,0.00029319,2]
[314342403,1708204241309,-702.78,0.00029319,2]
[314342404,1708204241318,-500.0,0.00029319,2]
[314342405,1708204241327,-500.0,0.00029319,2]
[314342406,1708204241337,-500.0,0.00029319,2]
[314342407,1708204241346,-2270.51,0.00029319,2]
[314342408,1708204241356,-500.0,0.00029319,2]
[314342409,1708204241365,-501.06074641,0.00029319,2]
[314342410,1708204241377,-500.0,0.00029319,2]
[314342412,1708204241386,-2450.54,0.00029319,2]
[314342414,1708204241395,-662.18,0.00029319,2]
[314342415,1708204241404,-500.0,0.00029319,2]
[314342417,1708204241414,-686.0,0.00029319,2]
[314342419,1708204241424,-500.0,0.00029319,2]
[314342421,1708204241433,-500.0,0.00029319,2]
[314342423,1708204241442,-500.0,0.00029319,2]
[314342424,1708204241451,-500.0,0.00029319,2]
[314342426,1708204241460,-500.0,0.00029319,2]
[314342427,1708204241469,-500.0,0.00029319,2]
[314342429,1708204241478,-500.0,0.00029319,2]
[314342431,1708204241487,-500.0,0.00029319,2]
[314342433,1708204241496,-3441.92,0.00029319,2]
[314342435,1708204241506,-2447.89,0.00029319,2]
[314342437,1708204241515,-500.0,0.0002932,2]
[314342439,1708204241524,-155.0,0.00029415,2]
[314342441,1708204241532,-157.515158,0.00029541,2]
[314342443,1708204241542,-196.782964,0.00029541,2]
[314342445,1708204241550,-3472.72,0.00029589,2]
[314342447,1708204241560,-746.75,0.00029589,2]
[314342449,1708204241569,-3796.26,0.00029589,2]
[314342451,1708204241579,-902.0,0.00029589,2]
[314342453,1708204241588,-500.0,0.00029589,2]
[314342454,1708204241597,-500.0,0.00029589,2]
[314342456,1708204241606,-500.0,0.00029589,2]
[314342458,1708204241615,-500.0,0.00029589,2]
[314342460,1708204241624,-589.31,0.00029589,2]
[314342462,1708204241633,-200.3193593,0.00029589,2]
[314342464,1708204241642,-200.3193593,0.00029589,2]
[314342466,1708204241651,-200.3193593,0.00029589,2]
[314342469,1708204241661,-200.0522324,0.00029589,2]
[314342471,1708204241670,-704.88,0.00029593,2]
[314342474,1708204241679,-219.0763038,0.00029593,2]
[314342477,1708204241689,-631.52,0.00029593,2]
[314342480,1708204241699,-500.0,0.00029593,2]
[314342483,1708204241708,-500.0,0.00029593,2]
[314342486,1708204241717,-500.0,0.00029593,2]
[314342489,1708204241725,-500.0,0.00029593,2]
[314342491,1708204241735,-270.22,0.00029593,2]
[314342493,1708204241744,-702.78,0.00029593,2]
[314342495,1708204241752,-500.0,0.00029593,2]
[314342497,1708204241762,-500.0,0.00029593,2]
[314342499,1708204241771,-500.0,0.00029593,2]
[314342501,1708204241780,-2270.51,0.00029593,2]
[314342503,1708204241789,-500.0,0.00029593,2]
[314342505,1708204241799,-500.0,0.00029593,2]
[314342507,1708204241808,-2450.54,0.00029593,2]
[314342508,1708204241817,-662.18,0.00029593,2]
[314342511,1708204241827,-500.0,0.00029593,2]
[314342513,1708204241836,-686.0,0.00029593,2]
[314342515,1708204241846,-500.0,0.00029593,2]
[314342517,1708204241855,-500.0,0.00029593,2]
[314342519,1708204241864,-500.0,0.00029593,2]
[314342520,1708204241873,-224.5,0.00029593,2]
[314342522,1708204241883,-500.0,0.00029593,2]
[314342524,1708204241892,-500.0,0.00029593,2]
[314342526,1708204241901,-500.0,0.00029593,2]
[314342528,1708204241910,-617.51,0.00029593,2]
[314342531,1708204241920,-3441.92,0.00029593,2]
[314342533,1708204241929,-2447.89,0.00029593,2]
[314342535,1708204241939,-500.0,0.00029594,2]
[314342537,1708204241948,-3472.72,0.00029863,2]
[314342539,1708204241958,-746.75,0.00029863,2]
[314342541,1708204241966,-3796.26,0.00029863,2]
[314342543,1708204241975,-902.0,0.00029863,2]
[314342545,1708204241984,-500.0,0.00029863,2]
[314342547,1708204241994,-466.83708487,0.00029863,2]
[314342549,1708204242003,-500.0,0.00029863,2]
[314342551,1708204242012,-500.0,0.00029863,2]
[314342553,1708204242022,-589.31,0.00029863,2]
[314342554,1708204242031,-704.88,0.00029867,2]
[314342556,1708204242041,-631.52,0.00029867,2]
[314342558,1708204242050,-500.0,0.00029867,2]
[314342561,1708204242059,-444.8,0.00029867,2]
[314342563,1708204242069,-500.0,0.00029867,2]
[314342565,1708204242079,-702.78,0.00029867,2]
[314342567,1708204242088,-500.0,0.00029867,2]
[314342569,1708204242097,-500.0,0.00029867,2]
[314342571,1708204242106,-500.0,0.00029867,2]
[314342573,1708204242116,-2270.51,0.00029867,2]
[314342575,1708204242126,-500.0,0.00029867,2]
[314342576,1708204242135,-2450.54,0.00029867,2]
[314342577,1708204242145,-662.18,0.00029867,2]
[314342579,1708204242155,-500.0,0.00029867,2]
[314342581,1708204242168,-686.0,0.00029867,2]
[314342583,1708204242177,-500.0,0.00029867,2]
[314342585,1708204242186,-517.07370122,0.00029867,2]
[314342587,1708204242196,-500.0,0.00029867,2]
[314342589,1708204242206,-500.0,0.00029867,2]
[314342591,1708204242214,-500.0,0.00029867,2]
[314342593,1708204242223,-500.0,0.00029867,2]
[314342595,1708204242232,-3441.92,0.00029867,2]
[314342597,1708204242242,-2447.89,0.00029867,2]
[314342599,1708204242251,-405.53960382,0.00029868,2]
[314342601,1708204242260,-283.22002948,0.00029889,2]
[314342603,1708204242269,-33938.85509953,0.0002989,2]
[314342605,1708204242278,-300.0,0.00029898,2]
[314342607,1708204242287,-154.93802479,0.00029899,2]
[314342609,1708204242296,-152.1625319,0.000299,2]
[314342611,1708204242305,-58211.57842157,0.000299,2]
[314342613,1708204242314,-151.0,0.000299,2]
[314342615,1708204242323,-281.0430101,0.00029988,2]
[314342617,1708204242332,-235.67204023,0.00029988,2]
[314342619,1708204242341,-245.32588603,0.00029988,2]
[314342621,1708204242350,-237.260291,0.00029988,2]
[314342623,1708204242360,-237.260291,0.00029988,2]
[314342625,1708204242370,-160.24275126,0.00029988,3]
[314342626,1708204242379,-4742.55224727,0.00029989,2]
[314342627,1708204242388,-1344.51,0.00029989,2]
[314342628,1708204242397,-1344.51,0.00029989,2]
[314342629,1708204242406,-1344.51,0.00029989,2]
[314342630,1708204242415,-1344.51,0.00029989,2]
[314342631,1708204242425,-1344.51,0.00029989,2]
[314342632,1708204242434,-11648.32,0.00029989,2]
[314342633,1708204242444,-27548.68335929,0.00029989,2]
[314342634,1708204242466,-2408.37,0.00029315,2]
[314342635,1708204242475,-282.35132191,0.00029989,2]
[314342636,1708204242585,-2408.37,0.00029589,2]
[314342637,1708204242594,-2408.37,0.00029863,2]
[314342638,1708204242604,-2412.2453188,0.00029989,2]
[314342639,1708204242613,-9706.23,0.00029989,2]
[314342640,1708204242622,-11648.33,0.00029989,2]
[314342641,1708204242631,-151.0,0.00029989,2]
[314342642,1708204242640,-151.0,0.00029989,2]
[314342643,1708204242650,-237.260291,0.00029989,2]
[314342644,1708204242660,-237.260291,0.00029989,2]
[314342645,1708204242669,-151.0,0.00029989,2]
[314342646,1708204242678,-9706.23,0.00029989,2]
[314342647,1708204242688,-186.79483224,0.00029989,2]
[314342648,1708204242697,-500.0,0.00029989,2]
[314342649,1708204242707,-500.0,0.00029989,2]
[314342650,1708204242716,-500.0,0.00029989,2]
[314342651,1708204242726,-223.29758661,0.00029989,2]
[314342652,1708204242735,-500.0,0.00029989,2]
[314342653,1708204242748,-500.0,0.00029989,2]
[314342654,1708204242757,-500.0,0.00029989,2]
[314342655,1708204242766,-291.08381287,0.00029989,2]
[314342656,1708204242775,-500.0,0.00029989,2]
[314342657,1708204242785,-221.07040186,0.00029989,2]
[314342658,1708204242794,-500.0,0.00029989,2]
[314342659,1708204242803,-23200.15319357,0.0002999,2]
[314342681,1708204243421,-395.92,0.00029031,3]
[314342682,1708204243430,-146.69338597,0.00029045,2]
[314342683,1708204243441,-359.39448283,0.00029045,2]
[314342684,1708204243450,-318020.46663492,0.0002999,2]
[314342685,1708204243459,-151.0,0.0002999,2]
[314342686,1708204243468,-237.260291,0.0002999,2]
[314342687,1708204243477,-151.0,0.0002999,2]
[314342688,1708204243486,-295.04399365,0.0003,10]
[314342689,1708204243494,-3858.4014668,0.0003,2]
[314342690,1708204243503,-225.0,0.0003,2]
[314342691,1708204243512,-283.22002943,0.00030078,2]
[314342692,1708204243521,-746.75,0.00030136,2]
[314342694,1708204243530,-3796.26,0.00030136,2]
[314342701,1708204243611,-902.0,0.00030136,2]
[314342703,1708204243621,-500.0,0.00030136,2]
[314342704,1708204243630,-500.0,0.00030136,2]
[314342705,1708204243639,-500.0,0.00030136,2]
[314342707,1708204243648,-589.31,0.00030136,2]
[314342709,1708204243656,-2408.37,0.00030136,2]
[314342710,1708204243665,-704.88,0.00030141,2]
[314342711,1708204243674,-631.52,0.00030141,2]
[314342713,1708204243684,-500.0,0.00030141,2]
[314342715,1708204243693,-500.0,0.00030141,2]
[314342716,1708204243702,-702.78,0.00030141,2]
[314342717,1708204243711,-500.0,0.00030141,2]
[314342718,1708204243720,-500.0,0.00030141,2]
[314342719,1708204243729,-500.0,0.00030141,2]
[314342720,1708204243737,-2270.51,0.00030141,2]
[314342721,1708204243747,-500.0,0.00030141,2]
[314342722,1708204243755,-2450.54,0.00030141,2]
[314342723,1708204243765,-662.18,0.00030141,2]
[314342724,1708204243774,-500.0,0.00030141,2]
[314342725,1708204243783,-686.0,0.00030141,2]
[314342726,1708204243793,-500.0,0.00030141,2]
[314342727,1708204243802,-500.0,0.00030141,2]
[314342728,1708204243811,-500.0,0.00030141,2]
[314342729,1708204243820,-500.0,0.00030141,2]